bitfinex/quotes_SOLUSD_20240905
["timestamp","ask_amount","ask_price","bid_price","bid_amount"]
[1725568035318,20.0,128.9,128.87,52.7597]
[1725568035527,9.41513917,128.92,128.88,9.31053599]
[1725568035744,20.0,128.91,128.88,9.31053599]
[1725568036426,7.7561,128.93,128.89,7.7581]
[1725568036629,7.7561,128.93,128.9,52.7578]
[1725568037221,7.7557,128.94,128.9,52.7578]
[1725568037741,20.0,128.93,128.9,52.7578]
[1725568038420,27.7562,128.93,128.9,52.7578]
[1725568042051,27.2562,128.93,128.9,52.7578]
[1725568042740,7.7568,128.92,128.9,45.0]
[1725568042955,27.2564,128.93,128.9,45.0]
[1725568044042,27.2564,128.93,128.9,52.7579]
[1725568044926,19.5,128.93,128.9,52.7579]
[1725568046448,27.2562,128.93,128.9,52.7579]
[1725568047331,19.5,128.93,128.9,72.1527]
[1725568049543,19.5,128.93,128.91,7.7572]
[1725568052418,19.5,128.93,128.9,19.3948]
[1725568052419,27.2561,128.93,128.9,19.3948]
[1725568052835,27.2561,128.93,128.9,27.1526]
[1725568054228,19.5,128.93,128.91,45.0]
[1725568054424,1.65813917,128.96,128.91,64.3921]
[1725568054631,1.65813917,128.97,128.92,1.55105141]
[1725568054852,1.65813917,128.97,128.92,9.30735141]
[1725568054853,7.7548,128.96,128.92,9.30735141]
[1725568055052,27.755,128.95,128.93,1.55105104]
[1725568055947,27.755,128.95,128.91,87.7911]
[1725568057752,27.755,128.95,128.92,7.7567]
[1725568057939,27.755,128.95,128.92,9.30776085]
[1725568058743,27.755,128.95,128.92,7.7567]
[1725568059136,27.755,128.95,128.92,9.3077737]
[1725568059542,27.755,128.95,128.92,7.7567]
[1725568060849,27.755,128.95,128.93,1.55100142]
[1725568061151,27.755,128.95,128.92,7.7567]
[1725568062351,27.755,128.95,128.91,80.0341]
[1725568062352,27.755,128.95,128.91,87.7911]
[1725568063954,27.755,128.95,128.92,7.7566]
[1725568064853,20.0,128.95,128.92,7.7566]
[1725568065151,20.0,128.95,128.93,7.756]
[1725568065541,20.0,128.96,128.93,7.756]
[1725568065855,20.0,128.96,128.93,9.30688502]
[1725568068228,20.0,128.96,128.95,27.1422]
[1725568068433,20.0,128.96,128.94,7.7553]
[1725568068635,20.0,128.97,128.94,7.7553]
[1725568068847,20.0,128.97,128.95,1.55079713]
[1725568069162,2.49730967,129.01,128.96,1.55079788]
[1725568069355,0.8391705,129.01,128.98,7.753]
[1725568069538,8.5904705,129.01,128.97,28.68799843]
[1725568070636,20.0,129.0,128.98,52.753]
[1725568070833,0.8391705,129.01,128.99,20.93121402]
[1725568071360,0.8391705,129.01,129.0,7.7519]
[1725568071671,0.8391705,129.01,128.99,27.1332]
[1725568072327,0.8391705,129.01,128.99,19.3809]
[1725568072951,0.8391705,129.01,128.98,7.7529]
[1725568074054,10.24860967,129.01,128.96,19.3851]
[1725568074249,10.24860967,129.01,128.97,45.0]
[1725568074426,20.0,129.0,128.97,45.0]
[1725568075440,27.7519,129.0,128.97,45.0]
[1725568076250,20.0,129.0,128.97,52.7533]
[1725568077456,7.7557,128.94,128.9,15.6001]
[1725568077656,19.3824,128.99,128.9,15.6001]
[1725568077860,7.7555,128.94,128.9,15.6001]
[1725568078042,7.7555,128.94,128.9,23.358]
[1725568078241,1.65813917,128.98,128.9,23.358]
[1725568078429,7.7559,128.94,128.9,23.358]
[1725568078633,7.7561,128.93,128.9,23.358]
[1725568079459,7.7557,128.94,128.9,23.358]
[1725568081038,7.7564,128.93,128.9,15.6001]
[1725568085135,7.7568,128.92,128.9,15.6001]
[1725568085767,1.65813917,128.96,128.9,15.6001]
[1725568085768,7.7563,128.93,128.9,15.6001]
[1725568089553,7.7556,128.94,128.91,1.55127651]
[1725568089977,7.7556,128.94,128.91,46.55127651]
[1725568090144,7.7556,128.94,128.91,45.0]
[1725568090567,7.7556,128.94,128.91,52.7573]
[1725568091763,7.7556,128.94,128.9,23.3577]
[1725568092366,7.7562,128.93,128.9,15.6001]
[1725568094870,7.7562,128.93,128.9,23.358]
[1725568097646,7.7562,128.93,128.9,15.6001]
[1725568098541,1.65813917,128.96,128.9,15.6001]
[1725568098542,7.7567,128.92,128.9,15.6001]
[1725568098886,7.7563,128.93,128.9,23.358]
[1725568099478,7.7563,128.93,128.9,15.6001]
[1725568099770,7.7577,128.91,128.87,43.4977]
[1725568101251,7.758,128.9,128.87,43.4977]
[1725568101451,7.758,128.9,128.87,35.7384]
[1725568102676,7.7576,128.91,128.88,45.0]
[1725568102976,20.0,128.9,128.88,45.0]
[1725568103652,7.7576,128.91,128.88,52.7591]
[1725568103857,20.0,128.9,128.88,52.7591]
[1725568104053,20.0,128.9,128.88,45.0]
[1725568107570,7.7559,128.94,128.9,14.3016]
[1725568107877,7.7559,128.94,128.91,1.55116497]
[1725568108877,7.7559,128.94,128.91,9.30826497]
[1725568109977,7.7551,128.95,128.91,9.30826497]
[1725568110171,20.0,128.94,128.91,9.30826497]
[1725568110573,20.0,128.94,128.93,7.7561]
[1725568110879,20.0,128.94,128.91,19.3919]
[1725568110880,20.0,128.94,128.92,7.7564]
[1725568111064,20.0,128.95,128.92,7.7564]
[1725568113365,20.0,128.95,128.91,19.3919]
[1725568113366,7.7558,128.94,128.91,19.3919]
[1725568113683,21.65813917,128.93,128.88,27.1552]
[1725568113868,1.65813917,128.92,128.88,27.1552]
[1725568114172,1.65813917,128.94,128.88,27.1552]
[1725568114380,1.65813917,128.94,128.88,19.3964]
[1725568114567,7.7574,128.91,128.88,19.3964]
[1725568115386,7.7574,128.91,128.88,27.1555]
[1725568115579,1.65813917,128.93,128.89,7.7583]
[1725568115760,7.7565,128.93,128.89,7.7583]
[1725568115973,20.0,128.92,128.89,7.7583]
[1725568116767,7.7565,128.93,128.89,7.7583]
[1725568116960,20.0,128.92,128.89,7.7583]
[1725568122289,27.7569,128.92,128.88,27.1551]
[1725568124069,7.7578,128.91,128.88,19.3964]
[1725568124575,7.7578,128.91,128.87,22.5101]
[1725568124576,7.7601,128.87,128.84,6.2364]
[1725568124770,7.7601,128.87,128.85,5.73632255]
[1725568125094,7.7601,128.87,128.84,6.2364]
[1725568125387,7.7601,128.87,128.85,5.73632552]
[1725568125562,7.7601,128.87,128.84,6.2364]
[1725568125767,7.7601,128.87,128.85,5.73664351]
[1725568125980,7.7601,128.87,128.84,6.2364]
[1725568126185,7.7601,128.87,128.85,5.73453302]
[1725568126388,7.7601,128.87,128.84,6.2364]
[1725568126691,7.7601,128.87,128.85,5.73434154]
[1725568126875,7.7601,128.87,128.84,13.9979]
[1725568127080,7.7601,128.87,128.85,5.73578812]
[1725568127270,7.7601,128.87,128.84,13.9979]
[1725568127470,7.7594,128.88,128.84,13.9979]
[1725568127672,20.0,128.87,128.85,5.73604771]
[1725568127885,20.0,128.87,128.84,13.9979]
[1725568133390,1.65813917,128.89,128.85,65.95416432]
[1725568133695,7.7581,128.9,128.86,9.31184902]
[1725568133994,20.0,128.89,128.86,9.31184902]
[1725568134499,20.0,128.89,128.86,1.55174902]
[1725568134696,27.7586,128.89,128.86,1.55174902]
[1725568135900,27.7586,128.89,128.85,72.1629]
[1725568136196,27.7586,128.89,128.85,64.4022]
[1725568136502,9.41763917,128.88,128.84,13.9977]
[1725568136703,7.7608,128.86,128.83,16.2549]
[1725568136875,1.65813917,128.88,128.83,16.2549]
[1725568137076,21.05653917,128.88,128.81,7.7629]
[1725568137273,20.0,128.87,128.81,7.7629]
[1725568137478,21.65813917,128.87,128.81,7.7629]
[1725568137878,21.65813917,128.87,128.8,22.7205]
[1725568138098,7.7617,128.84,128.8,22.7205]
[1725568138306,9.42033917,128.83,128.8,22.7205]
[1725568138491,7.7622,128.83,128.8,22.7205]
[1725568139397,1.65813917,128.86,128.8,16.4441]
[1725568139398,27.7628,128.82,128.8,16.4441]
[1725568140430,27.7628,128.82,128.78,12.51785433]
[1725568140579,27.7628,128.82,128.79,5.74783488]
[1725568140580,9.42143917,128.81,128.79,5.74783488]
[1725568140904,9.42143917,128.81,128.78,2.79166385]
[1725568140905,7.7645,128.79,128.78,2.79166385]
[1725568141085,7.7651,128.78,128.76,2.79166385]
[1725568141286,9.42393917,128.77,128.74,2.79510674]
[1725568141487,9.42443917,128.76,128.74,5.75362682]
[1725568141703,7.7663,128.76,128.73,15.6429]
[1725568142496,7.7657,128.77,128.73,15.6429]
[1725568142697,21.65813917,128.76,128.73,15.6429]
[1725568143105,20.0,128.76,128.73,23.411]
[1725568143410,21.65813917,128.77,128.73,23.411]
[1725568143907,20.0,128.77,128.73,23.411]
[1725568147409,27.7657,128.77,128.73,23.411]
[1725568147985,27.7657,128.77,128.73,15.6429]
[1725568148317,9.42463917,128.76,128.73,15.6429]
[1725568149202,7.7665,128.76,128.73,15.6429]
[1725568150206,27.7659,128.77,128.74,1.55340999]
[1725568150407,20.0,128.77,128.74,1.55340999]
[1725568151213,20.0,128.77,128.74,7.7674]
[1725568151395,20.0,128.77,128.74,9.32068971]
[1725568152500,20.0,128.77,128.74,7.7674]
[1725568155499,20.0,128.77,128.74,9.32059218]
[1725568156113,9.42293917,128.79,128.75,7.7669]
[1725568156314,3.14604824,128.81,128.75,19.4171]
[1725568156315,1.65813917,128.81,128.75,19.4171]
[1725568156517,7.7649,128.79,128.75,27.1838]
[1725568156822,20.0,128.82,128.75,27.1838]
[1725568156823,29.42343917,128.78,128.75,19.4171]
[1725568156996,7.7653,128.78,128.75,19.4171]
[1725568157501,7.7647,128.79,128.75,27.184]
[1725568157695,20.0,128.78,128.75,27.184]
[1725568160830,29.42323917,128.78,128.74,7.7674]
[1725568161122,27.7651,128.78,128.74,7.7674]
[1725568162103,27.7651,128.78,128.75,7.7669]
[1725568162302,20.0,128.78,128.75,7.7669]
[1725568163618,20.0,128.78,128.74,19.4176]
[1725568163920,7.7653,128.78,128.74,27.1851]
[1725568165404,7.7659,128.77,128.74,19.4176]
[1725568166424,7.7654,128.78,128.74,27.1851]
[1725568167495,1.65813917,128.79,128.76,7.7659]
[1725568167699,27.764,128.8,128.75,19.4161]
[1725568167700,20.0,128.8,128.75,19.4161]
[1725568167899,24.85768297,128.82,128.75,19.4161]
[1725568168117,7.7647,128.79,128.75,27.1827]
[1725568168318,20.0,128.78,128.75,27.1827]
[1725568170006,7.7647,128.79,128.75,27.1827]
[1725568170506,7.7642,128.8,128.76,7.7663]
[1725568170713,20.0,128.79,128.76,7.7663]
[1725568171819,1.65813917,128.82,128.77,68.96390894]
[1725568172025,1.65813917,128.83,128.77,68.96390894]
[1725568172326,7.763,128.82,128.79,7.7643]
[1725568172543,1.65813917,128.85,128.79,7.7643]
[1725568172825,7.7621,128.84,128.8,7.7638]
[1725568173609,20.0,128.83,128.8,7.7638]
[1725568175122,7.7621,128.84,128.8,7.7638]
[1725568175321,7.7621,128.84,128.81,7.7632]
[1725568175903,7.7611,128.85,128.81,7.7632]
[1725568176528,20.0,128.84,128.81,7.7632]
[1725568177110,20.0,128.84,128.82,61.5632]
[1725568179332,27.7617,128.84,128.82,16.5632]
[1725568182503,7.7621,128.83,128.79,7.7641]
[1725568182801,7.7621,128.83,128.78,15.2148]
[1725568183037,7.7621,128.83,128.79,45.0]
[1725568183241,27.7617,128.84,128.8,7.7639]
[1725568183727,9.42033917,128.83,128.79,52.7643]
[1725568183939,7.7622,128.83,128.79,52.7643]
[1725568184725,7.7622,128.83,128.8,7.7638]
[1725568186028,7.7629,128.82,128.79,45.0]
[1725568186333,7.7629,128.82,128.78,42.3911]
[1725568186534,9.42053917,128.83,128.79,7.7645]
[1725568187037,9.42053917,128.83,128.79,7.7641]
[1725568187038,7.7622,128.83,128.79,7.7641]
[1725568187209,9.42083917,128.82,128.79,7.7641]
[1725568187415,7.7627,128.82,128.79,7.7641]
[1725568188914,9.42053917,128.83,128.79,7.7641]
[1725568189531,7.7624,128.83,128.8,7.7638]
[1725568191411,9.42053917,128.83,128.79,7.7643]
[1725568192339,9.42123917,128.82,128.78,42.391]
[1725568192632,7.7631,128.82,128.79,7.7644]
[1725568192834,7.7645,128.79,128.76,19.4157]
[1725568193038,1.65813917,128.81,128.76,27.1817]
[1725568193039,7.7642,128.8,128.76,27.1817]
[1725568193336,7.7642,128.8,128.77,7.7657]
[1725568193708,1.65813917,128.82,128.77,7.7657]
[1725568193709,9.42143917,128.82,128.77,7.7657]
[1725568193914,20.0,128.81,128.77,7.7657]
[1725568194648,7.7635,128.81,128.78,52.7649]
[1725568197127,27.763,128.82,128.79,7.7645]
[1725568197714,27.763,128.82,128.78,52.7649]
[1725568200224,7.7619,128.84,128.8,7.7635]
[1725568200433,9.41953917,128.85,128.81,7.7629]
[1725568200746,7.7615,128.84,128.81,7.7629]
[1725568200916,7.7615,128.84,128.8,27.1723]
[1725568201118,7.7623,128.83,128.8,27.1724]
[1725568201718,7.7618,128.84,128.8,27.1724]
[1725568201919,20.0,128.83,128.8,27.1724]
[1725568202828,7.761,128.85,128.81,9.31564489]
[1725568203324,7.761,128.85,128.81,7.7632]
[1725568204042,7.761,128.85,128.82,7.7626]
[1725568204341,20.0,128.84,128.82,7.7626]
[1725568204651,20.0,128.85,128.82,7.7626]
[1725568204843,20.0,128.85,128.82,27.1693]
[1725568206847,20.0,128.85,128.83,7.762]
[1725568207146,20.0,128.85,128.83,9.31415008]
[1725568207846,1.65813917,128.88,128.85,7.7604]
[1725568208051,7.7589,128.89,128.86,1.551901]
[1725568208530,7.7589,128.89,128.85,27.1626]
[1725568208734,7.7589,128.89,128.85,28.71447822]
[1725568209043,7.7589,128.89,128.86,1.55189442]
[1725568209254,20.0,128.88,128.86,1.55189442]
[1725568209541,9.41623917,128.9,128.86,9.31219442]
[1725568209745,7.7581,128.9,128.86,9.31219442]
[1725568210046,7.7581,128.9,128.86,7.7603]
[1725568210726,27.7585,128.89,128.86,7.7603]
[1725568210931,27.7585,128.89,128.85,19.4022]
[1725568211132,9.41763917,128.88,128.85,19.4022]
[1725568213250,7.7595,128.88,128.85,19.4022]
[1725568213746,27.7587,128.89,128.85,27.1631]
[1725568213956,20.0,128.89,128.86,7.7602]
[1725568214323,1.65813917,128.94,128.86,19.3995]
[1725568214552,7.7575,128.91,128.88,7.7591]
[1725568217538,1.65813917,128.93,128.88,27.1567]
[1725568217718,21.65813917,128.94,128.88,27.1567]
[1725568217924,7.7571,128.92,128.88,27.1567]
[1725568218244,20.0,128.91,128.88,27.1567]
[1725568218449,27.7574,128.91,128.88,19.3976]
[1725568219047,7.7579,128.9,128.86,7.7601]
[1725568219252,9.41603917,128.9,128.86,7.7601]
[1725568219751,9.41673917,128.89,128.85,27.1616]
[1725568220545,9.41633917,128.9,128.86,7.7602]
[1725568220730,1.65813917,128.89,128.86,7.7602]
[1725568222152,29.41683917,128.89,128.85,27.1616]
[1725568222423,27.7587,128.89,128.85,27.1616]
[1725568223658,1.65813917,128.88,128.84,15.4243]
[1725568223865,7.7598,128.87,128.84,23.1858]
[1725568224150,7.7592,128.88,128.84,23.1858]
[1725568225740,7.7592,128.88,128.84,27.1652]
[1725568225935,21.65813917,128.87,128.83,7.7619]
[1725568226143,7.76,128.87,128.83,7.7619]
[1725568227030,1.65813917,128.86,128.81,23.3534]
[1725568227237,7.7619,128.84,128.81,15.5906]
[1725568231438,7.7612,128.85,128.81,15.5906]
[1725568231645,20.0,128.84,128.81,23.3536]
[1725568232452,1.35167752,128.83,128.81,23.3536]
[1725568232645,1.35167752,128.83,128.82,7.7627]
[1725568232853,1.35167752,128.83,128.82,54.31496257]
[1725568233358,20.0,128.86,128.83,27.1668]
[1725568233747,20.0,128.86,128.84,7.7615]
[1725568234358,9.11084648,128.88,128.84,7.7615]
[1725568235254,7.7598,128.87,128.84,7.7615]
[1725568235643,7.7603,128.86,128.83,19.4052]
[1725568236036,9.41913917,128.85,128.81,42.7619]
[1725568236244,20.0,128.85,128.82,7.7627]
[1725568237158,20.0,128.85,128.81,34.9988]
[1725568237159,27.7611,128.85,128.81,42.762]
[1725568240146,27.7611,128.85,128.82,7.7627]
[1725568240147,20.0,128.85,128.82,7.7627]
[1725568241447,7.7605,128.86,128.82,7.7627]
[1725568241648,7.7599,128.87,128.82,7.7624]
[1725568241857,20.0,128.86,128.82,7.7624]
[1725568242251,20.0,128.86,128.83,1.55211159]
[1725568243259,20.0,128.86,128.82,7.7624]
[1725568245067,20.0,128.86,128.83,1.55210529]
[1725568246568,20.0,128.86,128.84,1.55210847]
[1725568246756,10.76888565,128.88,128.84,1.55210847]
[1725568246757,20.0,128.87,128.84,9.31330847]
[1725568247194,20.0,128.87,128.84,7.7612]
[1725568248572,20.0,128.87,128.85,1.55198954]
[1725568248746,20.0,128.87,128.84,7.7612]
[1725568249360,20.0,128.87,128.83,27.1672]
[1725568250485,21.65813917,128.87,128.83,19.4053]
[1725568250773,7.7607,128.86,128.82,7.7625]
[1725568250983,9.41923917,128.85,128.81,42.7619]
[1725568251273,1.65813917,128.84,128.81,34.9988]
[1725568251474,7.7611,128.85,128.81,34.9988]
[1725568251774,7.7611,128.85,128.81,42.7621]
[1725568254170,1.35173068,128.84,128.81,42.7621]
[1725568255778,10.77136985,128.84,128.8,7.7636]
[1725568260280,3.00986985,128.84,128.81,27.1716]
[1725568260484,1.35173068,128.84,128.81,27.1716]
[1725568260671,7.7633,128.81,128.78,26.00452337]
[1725568260863,7.7633,128.81,128.78,5.22004348]
[1725568261554,20.0,128.8,128.78,5.22004348]
[1725568261863,7.7645,128.79,128.78,5.22004348]
[1725568262679,27.7642,128.8,128.78,5.22004348]
[1725568263186,1.65813917,128.79,128.78,5.22004348]
[1725568263686,9.42263917,128.79,128.78,5.22004348]
[1725568265191,29.42263917,128.79,128.78,5.22004348]
[1725568265359,7.7669,128.76,128.71,27.1917]
[1725568265686,9.42523917,128.75,128.72,12.54157757]
[1725568265861,1.65813917,128.74,128.71,12.50174361]
[1725568266063,1.65813917,128.73,128.69,2.76940467]
[1725568266386,7.7718,128.67,128.66,2.77049002]
[1725568266594,7.7724,128.66,128.65,5.24109302]
[1725568266763,7.7733,128.65,128.6,15.0398]
[1725568266969,21.65813917,128.64,128.6,15.0398]
[1725568267171,29.43193917,128.64,128.6,15.0398]
[1725568267488,20.0,128.64,128.6,22.8157]
[1725568267672,21.65813917,128.64,128.6,22.8157]
[1725568267872,1.65813917,128.64,128.6,22.8157]
[1725568268589,7.7725,128.66,128.61,7.7753]
[1725568268762,1.65813917,128.65,128.61,7.7753]
[1725568269859,21.65813917,128.65,128.61,7.7753]
[1725568270067,20.0,128.65,128.61,7.7753]
[1725568270671,1.65813917,128.64,128.61,7.7753]
[1725568270900,20.0,128.65,128.61,7.7753]
[1725568271590,1.65813917,128.64,128.61,7.7753]
[1725568271774,1.65813917,128.64,128.6,22.8157]
[1725568272373,9.43173917,128.64,128.6,15.0398]
[1725568272694,20.0,128.63,128.6,15.0398]
[1725568273196,20.0,128.63,128.6,22.8157]
[1725568274184,21.35301124,128.63,128.61,9.330077]
[1725568274385,1.35301124,128.63,128.6,22.8157]
[1725568274795,1.35301124,128.63,128.61,7.7753]
[1725568276998,1.35301124,128.63,128.62,9.32957762]
[1725568277224,1.35301124,128.63,128.62,54.32957762]
[1725568277392,7.7716,128.68,128.63,7.774]
[1725568277707,1.35267907,128.67,128.64,9.32799493]
[1725568278214,1.35267907,128.67,128.64,7.7735]
[1725568278706,3.01081824,128.67,128.64,7.7735]
[1725568278912,3.01081824,128.67,128.63,27.2091]
[1725568279291,23.01081824,128.67,128.63,27.2091]
[1725568279991,30.78261824,128.67,128.63,27.2091]
[1725568280303,30.78261824,128.67,128.62,7.7746]
[1725568280304,7.7725,128.66,128.62,7.7746]
[1725568281497,1.65813917,128.65,128.62,7.7746]
[1725568282188,9.43063917,128.66,128.62,7.7746]
[1725568284790,1.65813917,128.66,128.6,34.4789]
[1725568284990,7.7731,128.65,128.61,7.7753]
[1725568285301,1.65813917,128.64,128.61,7.7753]
[1725568286694,7.7731,128.65,128.61,7.7753]
[1725568286893,7.7725,128.66,128.62,7.7747]
[1725568287120,20.0,128.65,128.62,7.7747]
[1725568287319,1.65813917,128.64,128.6,34.4789]
[1725568287609,9.43173917,128.64,128.6,42.2545]
[1725568287792,7.7736,128.64,128.6,42.2545]
[1725568288392,7.7736,128.64,128.61,7.7754]
[1725568288597,9.43073917,128.66,128.62,9.32953291]
[1725568288800,20.0,128.65,128.62,9.32953291]
[1725568289195,20.0,128.65,128.62,7.7747]
[1725568289394,29.43113917,128.65,128.61,7.775]
[1725568289611,7.7737,128.64,128.6,42.2547]
[1725568289917,7.7742,128.63,128.6,34.4789]
[1725568290595,9.43193917,128.64,128.6,42.2548]
[1725568294003,7.7738,128.64,128.6,42.2548]
[1725568294202,9.43193917,128.64,128.6,42.2548]
[1725568294719,7.7738,128.64,128.6,42.2548]
[1725568295900,9.43193917,128.64,128.6,42.2548]
[1725568296304,7.7738,128.64,128.6,42.2548]
[1725568297417,9.43193917,128.64,128.6,42.2548]
[1725568297721,7.7738,128.64,128.6,42.2548]
[1725568298015,7.7742,128.63,128.6,42.2548]
[1725568298192,27.7742,128.63,128.6,42.2548]
[1725568298396,7.7742,128.63,128.6,41.2548]
[1725568306112,7.7739,128.64,128.6,41.2548]
[1725568306312,20.0,128.63,128.6,41.2548]
[1725568307806,1.35381321,128.62,128.6,41.2548]
[1725568308435,1.35381321,128.62,128.61,7.7754]
[1725568310431,1.35381321,128.62,128.61,52.7754]
[1725568310614,1.35381321,128.62,128.61,117.65657666]
[1725568310804,1.35381321,128.62,128.61,130.14840471]
[1725568311008,1.65813917,128.7,128.61,130.14840471]
[1725568311009,1.65813917,128.7,128.65,7.7727]
[1725568311213,1.35341951,128.67,128.65,7.7727]
[1725568311415,7.7713,128.68,128.64,19.4332]
[1725568311735,1.35341763,128.67,128.65,7.7729]
[1725568312323,1.35341763,128.67,128.66,1.5543185]
[1725568312504,1.35341763,128.67,128.65,7.7729]
[1725568315211,1.35341763,128.67,128.64,27.2066]
[1725568315445,1.35341763,128.67,128.61,19.4372]
[1725568315735,7.7734,128.65,128.62,2.75154545]
[1725568315911,7.7734,128.65,128.61,27.2125]
[1725568316315,9.43183917,128.64,128.61,19.4372]
[1725568316507,7.7732,128.65,128.61,19.4372]
[1725568317312,1.65813917,128.64,128.61,27.2125]
[1725568317911,9.43133917,128.65,128.62,5.79162709]
[1725568318908,9.43133917,128.65,128.61,27.2125]
[1725568319137,7.7732,128.65,128.62,5.79147223]
[1725568319313,7.7732,128.65,128.61,27.2125]
[1725568320437,7.7732,128.65,128.62,5.79118553]
[1725568320735,7.7732,128.65,128.61,27.2125]
[1725568320930,7.7732,128.65,128.62,5.79133203]
[1725568321135,7.7732,128.65,128.61,27.2125]
[1725568321337,1.65813917,128.64,128.62,5.79133071]
[1725568321541,7.7744,128.63,128.6,14.0398]
[1725568321716,7.7744,128.63,128.61,5.79196699]
[1725568322041,7.7744,128.63,128.59,6.599]
[1725568322286,7.7744,128.63,128.6,5.79175052]
[1725568322429,7.7744,128.63,128.59,7.7763]
[1725568322736,21.65813917,128.62,128.58,15.58805529]
[1725568322924,7.7754,128.61,128.56,8.6175705]
[1725568323128,7.7771,128.59,128.56,0.8391705]
[1725568323331,7.7771,128.59,128.57,23.46381331]
[1725568323532,7.7771,128.59,128.57,10.67999476]
[1725568324031,7.7771,128.59,128.57,13.43315884]
[1725568324235,7.7771,128.59,128.57,10.67999476]
[1725568325732,1.65813917,128.58,128.57,10.67999476]
[1725568326748,7.7771,128.59,128.57,10.67999476]
[1725568326948,1.65813917,128.61,128.57,30.12429476]
[1725568327155,9.43393917,128.61,128.57,37.90199476]
[1725568327451,20.0,128.6,128.57,37.90189476]
[1725568327644,9.43353917,128.61,128.57,37.90189476]
[1725568327956,20.0,128.6,128.57,37.90189476]
[1725568328938,20.0,128.6,128.57,30.12429476]
[1725568329337,20.0,128.6,128.57,19.4443]
[1725568330043,20.0,128.6,128.57,27.222]
[1725568331353,7.7749,128.62,128.58,9.33231721]
[1725568331533,7.7737,128.64,128.6,7.7759]
[1725568332057,1.35388784,128.63,128.6,7.7759]
[1725568332433,1.35388784,128.63,128.61,28.7683445]
[1725568332764,1.35388784,128.63,128.61,28.7685445]
[1725568333651,1.35388784,128.63,128.61,27.2137]
[1725568334247,1.35388784,128.63,128.62,1.55478066]
[1725568334848,1.35388784,128.63,128.61,27.2137]
[1725568335046,1.35388784,128.63,128.62,9.32955405]
[1725568335356,1.35388784,128.63,128.62,54.32955405]
[1725568335857,1.35388784,128.63,128.62,52.7748]
[1725568336032,1.65813917,128.71,128.65,7.773]
[1725568336532,7.7701,128.7,128.66,7.7723]
[1725568336832,9.12342822,128.7,128.67,1.55427491]
[1725568337034,9.12342822,128.7,128.65,22.9269]
[1725568337348,9.12342822,128.7,128.66,7.7723]
[1725568337542,1.35322822,128.7,128.68,7.7711]
[1725568337860,1.65813917,128.74,128.69,1.55391972]
[1725568338039,1.35292617,128.72,128.69,1.55391972]
[1725568338655,1.35292617,128.72,128.69,9.32441972]
[1725568339348,21.35292617,128.72,128.69,7.7705]
[1725568339657,21.35292617,128.72,128.68,27.1987]
[1725568340962,21.35292617,128.72,128.69,54.32443478]
[1725568341660,21.35292617,128.72,128.69,52.7706]
[1725568341961,1.35292617,128.72,128.69,52.7706]
[1725568346363,1.35292617,128.72,128.71,7.7694]
[1725568346978,7.7671,128.75,128.71,7.7694]
[1725568347150,1.35264318,128.74,128.71,7.7694]
[1725568347344,9.12024318,128.74,128.71,7.7694]
[1725568348156,9.12024318,128.74,128.66,122.13666733]
[1725568348157,7.7691,128.72,128.68,7.771]
[1725568348358,7.7703,128.7,128.67,16.6277]
[1725568348660,7.7698,128.71,128.67,24.3994]
[1725568348864,27.77,128.7,128.67,16.6277]
[1725568351966,29.12320913,128.7,128.67,16.6277]
[1725568352367,29.12320913,128.7,128.67,24.3994]
[1725568352671,21.35320913,128.7,128.67,24.3994]
[1725568353171,1.35320913,128.7,128.67,24.3994]
[1725568353546,1.35320913,128.7,128.68,7.7711]
[1725568353871,1.35320913,128.7,128.69,52.7706]
[1725568354047,1.35320913,128.7,128.69,45.0]
[1725568356553,1.35320913,128.7,128.68,27.1987]